bitfinex/quotes_SOLUSD_20251002
["timestamp","ask_amount","ask_price","bid_price","bid_amount"]
[1759446495672,91.08733452,233.8,233.79,50.88]
[1759446496178,91.08733452,233.8,233.79,30.08]
[1759446496862,101.91086057,233.8,233.79,30.08]
[1759446497065,10.87647521,233.79,233.73,20.8]
[1759446497242,0.7,233.78,233.77,20.8]
[1759446497439,0.7,233.78,233.77,30.08]
[1759446498080,4.97752587,233.78,233.77,30.08]
[1759446499350,15.67134056,233.78,233.77,30.08]
[1759446499551,15.67134056,233.78,233.75,20.8]
[1759446499766,11.70710135,233.77,233.69,24.38202314]
[1759446499965,14.97262148,233.76,233.7,20.8]
[1759446500163,10.87647521,233.74,233.67,3.58202314]
[1759446500370,10.87647521,233.74,233.66,3.58202314]
[1759446500681,0.7,233.73,233.67,50.88]
[1759446500979,0.7,233.72,233.67,50.88]
[1759446501267,11.00710135,233.75,233.67,30.08]
[1759446501268,0.7,233.71,233.67,30.08]
[1759446501469,0.7,233.7,233.69,20.8]
[1759446501781,0.7,233.7,233.69,50.88]
[1759446502669,0.7,233.7,233.62,3.58202314]
[1759446502849,0.7,233.71,233.63,30.24]
[1759446503050,0.7,233.71,233.66,20.8]
[1759446503247,0.7,233.71,233.7,20.8]
[1759446503466,11.00710135,233.74,233.7,50.88]
[1759446504063,4.27880706,233.71,233.7,50.88]
[1759446504260,4.97880706,233.71,233.65,20.8]
[1759446504459,11.69710135,233.7,233.69,20.8]
[1759446504676,11.69710135,233.7,233.69,50.88]
[1759446504851,11.56647521,233.7,233.69,50.88]
[1759446505350,0.69,233.7,233.69,50.88]
[1759446506253,4.96899015,233.7,233.69,50.88]
[1759446507576,4.96899015,233.7,233.69,30.08]
[1759446509387,0.69,233.7,233.69,30.08]
[1759446509585,4.96899015,233.7,233.69,30.08]
[1759446511682,4.96899015,233.7,233.63,20.96]
[1759446511869,0.72,233.69,233.67,20.8]
[1759446512180,4.27899015,233.7,233.63,20.8]
[1759446512363,4.27899015,233.7,233.67,20.8]
[1759446512562,4.27899015,233.7,233.68,30.08]
[1759446512762,0.72,233.69,233.68,30.08]
[1759446513063,0.72,233.69,233.63,20.8]
[1759446513370,4.99935638,233.68,233.67,20.8]
[1759446513671,10.87647521,233.67,233.56,3.58202314]
[1759446513872,15.69774734,233.68,233.57,30.08]
[1759446513873,10.87647521,233.65,233.57,30.08]
[1759446514061,0.85062614,233.64,233.57,30.08]
[1759446514261,0.72,233.63,233.57,30.08]
[1759446514668,0.72,233.63,233.6,20.8]
[1759446514865,4.28045544,233.62,233.61,30.08]
[1759446515080,5.00045544,233.62,233.61,30.08]
[1759446515268,4.28028475,233.63,233.61,30.08]
[1759446515457,0.72,233.62,233.61,30.08]
[1759446516287,5.00045544,233.62,233.61,30.08]
[1759446517689,4.28027222,233.63,233.61,30.08]
[1759446517985,5.00027222,233.63,233.61,30.08]
[1759446518576,5.00045544,233.62,233.61,30.08]
[1759446518885,4.28045544,233.62,233.61,30.08]
[1759446519391,5.00045544,233.62,233.61,30.08]
[1759446519590,5.00045544,233.62,233.57,20.8]
[1759446519789,5.00045544,233.62,233.61,20.8]
[1759446519972,5.00045544,233.62,233.61,50.88]
[1759446521691,5.00045544,233.62,233.54,0.2]
[1759446521692,10.87647521,233.61,233.54,0.2]
[1759446521880,11.00710135,233.61,233.55,50.88]
[1759446522078,0.72,233.6,233.55,50.88]
[1759446522490,0.72,233.59,233.55,50.88]
[1759446522702,5.001103,233.59,233.55,50.88]
[1759446524199,0.72,233.59,233.55,50.88]
[1759446524399,5.00101844,233.59,233.55,50.88]
[1759446524876,0.72,233.6,233.55,50.88]
[1759446525077,0.72,233.6,233.55,55.16170656]
[1759446525291,0.72,233.6,233.55,50.88]
[1759446525470,0.72,233.59,233.55,50.88]
[1759446525869,15.28780499,233.61,233.55,50.88]
[1759446526293,0.72,233.6,233.55,50.88]
[1759446526684,0.72,233.6,233.54,4.48190662]
[1759446526685,0.72,233.59,233.58,20.8]
[1759446526897,0.72,233.59,233.58,30.08]
[1759446527690,5.00100518,233.59,233.58,30.08]
[1759446534285,5.00100518,233.59,233.54,0.2]
[1759446534505,5.00100518,233.59,233.58,20.8]
[1759446534717,5.00100518,233.59,233.58,50.88]
[1759446542914,15.2878344,233.61,233.58,50.88]
[1759446543119,0.13062614,233.6,233.58,50.88]
[1759446543308,0.66,233.6,233.58,50.88]
[1759446543506,0.66,233.59,233.58,50.88]
[1759446544907,4.94100518,233.59,233.58,30.08]
[1759446545832,4.28100518,233.59,233.55,0.16]
[1759446545994,4.28100518,233.59,233.58,20.8]
[1759446546196,4.28100518,233.59,233.58,50.88]
[1759446547323,0.13062614,233.63,233.54,4.48188285]
[1759446547512,4.27990584,233.65,233.58,20.96]
[1759446547696,4.27990584,233.65,233.62,20.8]
[1759446548024,4.27990584,233.65,233.63,30.08]
[1759446548803,15.15619788,233.66,233.63,30.08]
[1759446549013,15.81619788,233.66,233.63,30.08]
[1759446549210,4.2793697,233.68,233.63,30.24]
[1759446549412,0.66,233.67,233.63,30.08]
[1759446550404,4.27972267,233.66,233.65,20.8]
[1759446550604,4.27972267,233.66,233.65,30.08]
[1759446551929,0.66,233.66,233.65,30.08]
[1759446552323,4.27953952,233.67,233.65,30.08]
[1759446552735,4.93953952,233.67,233.65,30.08]
[1759446553131,0.79062614,233.66,233.61,20.8]
[1759446553443,0.79062614,233.66,233.54,4.97310678]
[1759446553444,0.79062614,233.66,233.65,20.8]
[1759446553731,0.79062614,233.66,233.65,50.88]
[1759446554036,5.07034881,233.66,233.65,50.88]
[1759446555510,5.07034881,233.66,233.59,0.16]
[1759446555710,5.07034881,233.66,233.63,20.8]
[1759446555918,4.93990584,233.65,233.64,30.08]
[1759446562238,10.87647521,233.64,233.54,0.2]
[1759446562547,10.87647521,233.62,233.55,30.06]
[1759446562721,10.87647521,233.62,233.54,0.2]
[1759446562722,0.79062614,233.61,233.54,0.2]
[1759446562908,0.79062614,233.61,233.58,20.8]
[1759446563111,0.66,233.6,233.59,30.06]
[1759446564024,4.94082191,233.6,233.59,30.06]
[1759446564529,0.13062614,233.64,233.59,30.06]
[1759446564729,4.28008902,233.64,233.59,30.22]
[1759446565116,4.27992466,233.65,233.62,20.8]
[1759446565308,4.27992466,233.65,233.63,30.06]
[1759446568642,4.27972267,233.66,233.65,20.8]
[1759446568813,4.27972267,233.66,233.65,50.86]
[1759446572134,4.99972267,233.66,233.65,50.86]
[1759446574044,10.87647521,233.65,233.52,4.97310678]
[1759446574227,10.87647521,233.63,233.55,30.06]
[1759446574555,0.85062614,233.62,233.58,20.8]
[1759446574755,0.85062614,233.62,233.61,20.8]
[1759446574756,0.13062614,233.62,233.61,20.8]
[1759446574915,0.13062614,233.62,233.53,0.16]
[1759446575116,0.13062614,233.62,233.52,4.48212182]
[1759446575315,0.72,233.61,233.58,20.8]
[1759446575540,0.85062614,233.6,233.59,30.06]
[1759446575738,5.13144805,233.6,233.59,30.06]
[1759446579660,26.70997805,233.6,233.58,20.8]
[1759446579960,25.98997805,233.6,233.59,30.06]
[1759446580632,26.70997805,233.6,233.54,0.2]
[1759446580946,26.70997805,233.6,233.58,20.8]
[1759446581132,25.98997805,233.6,233.59,30.06]
[1759446581660,26.70997805,233.6,233.59,30.06]
[1759446581824,26.70997805,233.6,233.54,0.2]
[1759446582023,26.70997805,233.6,233.58,20.8]
[1759446582232,25.98997805,233.6,233.59,30.06]
[1759446582945,26.70997805,233.6,233.59,30.06]
[1759446584343,10.87647521,233.59,233.54,0.2]
[1759446584533,0.13062614,233.58,233.55,30.06]
[1759446584725,0.85062614,233.58,233.55,30.06]
[1759446585048,0.72,233.57,233.55,30.06]
[1759446585354,10.87647521,233.59,233.54,0.2]
[1759446585355,0.85062614,233.56,233.54,0.2]
[1759446585556,11.72710135,233.56,233.55,30.06]
[1759446586249,16.00865641,233.56,233.55,30.06]
[1759446587236,0.13062614,233.56,233.55,30.06]
[1759446587539,15.28810653,233.59,233.55,30.06]
[1759446587853,0.72,233.58,233.55,30.06]
[1759446588032,0.13062614,233.57,233.55,30.06]
[1759446589164,4.41215328,233.57,233.55,30.06]
[1759446590046,4.28152714,233.57,233.55,30.06]
[1759446590550,4.41182033,233.58,233.55,30.06]
[1759446592656,5.13182033,233.58,233.55,30.06]
[1759446593840,4.41182033,233.58,233.54,0.2]
[1759446594154,0.72,233.57,233.55,30.06]
[1759446594460,5.13182033,233.58,233.55,30.06]
[1759446595465,4.41182033,233.58,233.55,30.06]
[1759446595670,0.72,233.57,233.55,30.06]
[1759446595875,5.00155464,233.57,233.55,30.06]
[1759446597454,4.28155464,233.57,233.55,30.06]
[1759446598075,5.00155464,233.57,233.55,30.06]
[1759446600578,4.28155464,233.57,233.55,30.06]
[1759446601072,4.41183654,233.58,233.55,30.06]
[1759446602463,11.00710135,233.59,233.55,30.06]
[1759446602677,4.28099559,233.6,233.55,30.06]
[1759446603002,4.28099559,233.6,233.55,30.22]
[1759446603183,10.87647521,233.61,233.55,55.30168311]
[1759446603478,4.27988276,233.66,233.58,20.8]
[1759446603680,4.41019333,233.67,233.62,20.8]
[1759446603881,0.65,233.66,233.62,20.8]
[1759446604193,10.87647521,233.64,233.63,30.04]
[1759446604356,11.52647521,233.64,233.63,30.04]
[1759446604778,11.52647521,233.64,233.54,0.2]
[1759446604969,0.13062614,233.63,233.55,50.84]
[1759446605279,10.87647521,233.59,233.55,50.84]
[1759446605484,11.65710135,233.58,233.57,20.8]
[1759446606157,11.00710135,233.59,233.57,20.8]
[1759446606359,11.00710135,233.59,233.58,30.04]
[1759446606582,0.13062614,233.59,233.58,30.04]
[1759446606759,4.28082191,233.6,233.58,30.04]
[1759446607160,4.93082191,233.6,233.58,30.04]
[1759446607666,4.28082191,233.6,233.54,0.2]
[1759446607866,0.13062614,233.59,233.55,30.04]
[1759446608071,0.65,233.58,233.57,20.8]
[1759446608271,0.65,233.58,233.57,50.84]
[1759446608981,11.00710135,233.59,233.57,50.84]
[1759446609288,4.28118845,233.58,233.57,50.84]
[1759446609783,4.93118845,233.58,233.57,30.04]
[1759446609989,4.93118845,233.58,233.55,20.8]
[1759446610169,11.65710135,233.57,233.56,30.04]
[1759446610774,10.87647521,233.56,233.54,0.2]
[1759446610982,0.13062614,233.55,233.54,0.2]
[1759446611192,4.93173838,233.55,233.54,30.24]
[1759446611776,4.41209106,233.57,233.54,30.24]
[1759446611989,0.78062614,233.59,233.54,30.24]
[1759446612783,4.9312124,233.58,233.54,30.24]
[1759446612983,0.78062614,233.57,233.54,30.24]
[1759446613181,4.93155506,233.56,233.54,0.2]
[1759446613388,15.80803027,233.56,233.55,30.04]
[1759446615802,15.15803027,233.56,233.55,30.04]
[1759446616297,4.41197672,233.58,233.55,30.04]
[1759446620487,11.00710135,233.59,233.55,30.04]
[1759446620686,10.87647521,233.57,233.54,0.2]
[1759446620892,0.13062614,233.56,233.55,30.04]
[1759446621095,0.13062614,233.58,233.55,30.04]
[1759446621288,11.00710135,233.58,233.55,30.04]
[1759446621725,11.65710135,233.58,233.55,30.04]
[1759446622305,4.28137175,233.57,233.55,30.04]
[1759446623000,4.28137175,233.57,233.54,0.2]
[1759446623204,0.65,233.56,233.55,30.04]
[1759446623387,0.65,233.56,233.54,0.2]
[1759446623701,0.78062614,233.56,233.54,30.24]
[1759446623914,11.52647521,233.55,233.54,30.24]
[1759446624214,15.80821359,233.55,233.54,30.24]
[1759446624921,4.2815052,233.57,233.54,30.24]
[1759446625074,4.41213134,233.57,233.54,30.24]
[1759446625489,4.4118379,233.58,233.54,30.24]
[1759446625892,0.13062614,233.59,233.54,30.4]
[1759446626095,11.00710135,233.59,233.54,30.4]
[1759446626336,11.00710135,233.59,233.54,30.24]
[1759446626337,15.98820165,233.59,233.54,30.24]
[1759446627429,15.98820165,233.59,233.54,34.52188954]
[1759446627604,15.2878922,233.61,233.57,20.8]
[1759446627918,15.2878922,233.61,233.54,30.24]
[1759446627919,0.7,233.6,233.54,30.24]
[1759446628109,0.83062614,233.59,233.54,30.24]
[1759446628305,15.68415959,233.58,233.54,30.24]
[1759446628519,10.87647521,233.56,233.54,30.24]
[1759446628711,11.70710135,233.55,233.54,0.2]
[1759446628915,11.70710135,233.55,233.54,30.24]
[1759446630219,11.70710135,233.55,233.54,0.2]
[1759446630516,15.98883973,233.55,233.54,0.2]
[1759446630708,15.98883973,233.55,233.54,30.24]
[1759446631730,15.98883973,233.55,233.54,0.2]
[1759446632306,10.87647521,233.54,233.44,0.2]
[1759446632507,10.87647521,233.52,233.44,0.2]
[1759446632715,0.13062614,233.51,233.45,29.78]
[1759446632927,0.67,233.5,233.45,29.78]
[1759446633140,10.87647521,233.48,233.45,29.78]
[1759446633322,10.87647521,233.46,233.44,0.2]
[1759446633532,10.87647521,233.46,233.45,30.04]
[1759446633821,4.95338901,233.46,233.45,30.04]
[1759446635447,4.95338901,233.46,233.44,0.2]
[1759446635621,15.82986422,233.46,233.45,30.04]
[1759446637636,15.96049036,233.46,233.45,30.04]
[1759446639750,10.87647521,233.45,233.44,0.2]
[1759446639944,15.1600477,233.45,233.44,0.2]
[1759446640128,15.8300477,233.45,233.44,30.24]
[1759446640755,15.8300477,233.45,233.44,0.2]
[1759446641548,15.96067384,233.45,233.44,0.2]
[1759446645330,28.69536922,233.45,233.44,0.2]
[1759446645827,28.82599536,233.45,233.44,0.2]
[1759446646832,28.69536922,233.45,233.44,0.2]
[1759446650745,28.02536922,233.45,233.44,0.2]
[1759446651047,10.87647521,233.45,233.44,0.56]
[1759446651251,10.87647521,233.45,233.44,0.2]
[1759446652062,15.1600477,233.45,233.44,0.17932416]
[1759446652363,10.87647521,233.45,233.44,0.17932416]
[1759446652541,15.29067384,233.45,233.44,0.17932416]
[1759446653457,15.1600477,233.45,233.44,0.17932416]
[1759446653764,10.87647521,233.45,233.44,0.17932416]
[1759446653965,11.00710135,233.45,233.44,0.17932416]
[1759446655140,10.87647521,233.45,233.44,0.17932416]
[1759446655444,15.8300477,233.45,233.44,0.17932416]
[1759446656767,15.1600477,233.45,233.44,0.17932416]
[1759446657452,15.8300477,233.45,233.44,0.17932416]
[1759446660063,15.1600477,233.45,233.44,0.17932416]
[1759446660566,15.8300477,233.45,233.44,0.17932416]
[1759446661959,15.1600477,233.45,233.44,0.17932416]
[1759446662364,15.8700477,233.45,233.44,0.17932416]
[1759446662560,15.1600477,233.45,233.44,0.17932416]
[1759446663746,10.87647521,233.45,233.44,0.17932416]
[1759446663941,10.87647521,233.45,233.44,0.53932416]
[1759446665166,11.00710135,233.48,233.44,0.53932416]
[1759446665369,16.00013837,233.48,233.45,30.04]
[1759446665538,15.29013837,233.48,233.45,30.04]
[1759446666972,15.15951223,233.48,233.45,30.04]
[1759446668185,10.87647521,233.49,233.46,0.36]
[1759446668351,11.00710135,233.49,233.47,20.8]
[1759446668847,4.28281708,233.5,233.48,20.8]
[1759446669052,15.15929229,233.5,233.49,30.04]
[1759446669949,0.13062614,233.52,233.49,30.04]
[1759446671279,4.41291545,233.52,233.49,30.04]
[1759446672583,0.13062614,233.52,233.49,30.04]
[1759446672875,10.87647521,233.54,233.5,0.36]
[1759446673050,11.00710135,233.54,233.5,0.36]
[1759446674178,11.00710135,233.54,233.49,30.04]
[1759446674385,4.41266902,233.54,233.49,30.4]
[1759446675379,4.99204288,233.54,233.49,30.4]
[1759446675578,4.28204288,233.54,233.49,34.68282098]
[1759446675778,4.28204288,233.54,233.49,30.4]
[1759446676454,4.99204288,233.54,233.49,30.4]
[1759446677881,4.28204288,233.54,233.49,30.4]
[1759446678054,4.28204288,233.54,233.52,20.8]
[1759446678258,4.28204288,233.54,233.53,30.02]
[1759446678458,0.13062614,233.55,233.53,30.02]
[1759446678678,4.28138586,233.57,233.53,30.02]
[1759446678854,10.87647521,233.56,233.55,20.8]
[1759446679180,15.28854519,233.57,233.55,20.8]
[1759446679382,15.99854519,233.57,233.55,20.8]
[1759446679566,15.28854519,233.57,233.55,20.8]
[1759446679770,0.71,233.56,233.55,20.8]
[1759446680077,0.71,233.56,233.55,30.02]
[1759446680078,4.99155506,233.56,233.55,30.02]
[1759446681755,4.28155506,233.56,233.55,30.02]
[1759446687880,15.95848765,233.57,233.55,30.02]
[1759446688369,10.87647521,233.58,233.55,30.02]
[1759446688570,11.00710135,233.58,233.55,30.02]
[1759446688995,0.67,233.57,233.55,30.02]
[1759446689310,0.13062614,233.56,233.55,30.02]
[1759446689584,11.00710135,233.56,233.55,30.02]
[1759446691283,0.80062614,233.6,233.55,30.02]
[1759446691482,10.87647521,233.59,233.55,30.38]
[1759446691661,5.08144805,233.6,233.55,30.38]
[1759446692279,5.08144805,233.6,233.55,30.02]
[1759446692280,4.41144805,233.6,233.55,30.02]
[1759446692467,0.72,233.59,233.55,30.02]
[1759446692985,0.85062614,233.58,233.56,30.02]
[1759446693164,11.59647521,233.57,233.56,30.02]
[1759446693368,15.87784696,233.57,233.56,30.02]
[1759446694274,10.87647521,233.56,233.54,30.02]
[1759446694479,0.72,233.55,233.54,30.02]
[1759446695478,5.00173838,233.55,233.54,30.02]
[1759446697190,5.00173838,233.55,233.5,20.8]
[1759446697392,5.00173838,233.55,233.54,20.8]
[1759446697991,5.00173838,233.55,233.54,50.82]
[1759446698184,5.00173838,233.55,233.5,20.8]
[1759446698185,5.13236452,233.55,233.5,20.8]
[1759446698384,15.28883973,233.55,233.54,20.8]
[1759446698972,16.00883973,233.55,233.54,20.8]
[1759446699791,10.87647521,233.54,233.48,0.36]
[1759446700100,10.87647521,233.54,233.52,20.8]
[1759446700268,15.87839693,233.54,233.53,30.0]
[1759446702276,15.87839693,233.54,233.52,30.0]
[1759446702479,10.87647521,233.52,233.5,20.8]
[1759446702678,0.85062614,233.51,233.46,20.8]
[1759446702882,0.85062614,233.51,233.5,20.8]
[1759446703090,0.85062614,233.51,233.5,50.8]
[1759446703297,0.72,233.51,233.5,20.8]
[1759446703596,0.85062614,233.51,233.49,30.0]
[1759446703797,0.72,233.5,233.49,30.0]
[1759446704169,0.13062614,233.51,233.49,30.0]
[1759446704371,11.59647521,233.53,233.49,30.0]
[1759446704372,0.13062614,233.53,233.49,30.36]
[1759446704780,11.00710135,233.54,233.49,30.0]
[1759446705003,11.00710135,233.54,233.5,0.36]
[1759446705697,11.00710135,233.54,233.49,30.0]
[1759446705899,15.28914455,233.54,233.49,30.36]
[1759446707297,16.00914455,233.54,233.49,30.36]
[1759446707509,15.87851841,233.54,233.49,30.36]
[1759446707692,15.15851841,233.54,233.49,30.36]
[1759446709193,15.28914455,233.54,233.49,30.36]
[1759446709397,16.00914455,233.54,233.49,30.36]
[1759446710086,15.87851841,233.54,233.49,0.36]
[1759446710286,15.87851841,233.54,233.5,30.0]
[1759446711016,15.87851841,233.54,233.49,0.36]
[1759446711205,15.87851841,233.54,233.51,30.0]
[1759446711716,10.70370445,233.57,233.52,0.36]
[1759446711717,10.87647521,233.57,233.52,0.36]
[1759446711899,0.13062614,233.56,233.52,0.36]
[1759446712702,15.87789323,233.57,233.52,0.36]
[1759446713002,10.87647521,233.59,233.54,20.8]
[1759446713210,10.87647521,233.59,233.55,30.36]
[1759446713581,0.72,233.6,233.55,30.36]
[1759446713783,11.00710135,233.6,233.58,20.8]
[1759446714009,11.00710135,233.6,233.59,30.0]
[1759446714183,11.72710135,233.6,233.59,30.0]
[1759446715184,16.00792326,233.6,233.59,30.0]
[1759446716120,15.87729712,233.6,233.59,30.0]
[1759446720223,4.28065027,233.61,233.59,30.0]
[1759446720404,7.46510787,233.63,233.59,30.36]
[1759446720813,7.46510787,233.63,233.6,0.36]
[1759446720999,7.46510787,233.63,233.61,30.0]
[1759446724626,8.13510787,233.63,233.61,30.0]
[1759446725435,7.46510787,233.63,233.61,30.0]
[1759446727138,0.67,233.62,233.61,30.0]
[1759446727508,7.46510787,233.63,233.61,30.0]
[1759446727842,8.13510787,233.63,233.61,30.0]
[1759446729127,8.13510787,233.63,233.58,25.08109396]
[1759446729328,8.13510787,233.63,233.58,25.44109396]
[1759446729512,8.13510787,233.63,233.62,20.8]
[1759446729810,8.13510787,233.63,233.62,50.78]
[1759446730527,8.13510787,233.63,233.62,29.98]
[1759446733235,7.46510787,233.63,233.62,29.98]
[1759446735236,7.46510787,233.63,233.59,4.28100518]
[1759446735531,7.46510787,233.63,233.62,20.8]
[1759446736238,7.46510787,233.63,233.59,4.64100518]
[1759446736408,0.13062614,233.67,233.63,20.8]
[1759446736609,0.80062614,233.7,233.64,29.98]
[1759446736935,0.67,233.7,233.67,20.8]
[1759446737257,0.67,233.7,233.68,29.98]
[1759446737411,4.27880706,233.71,233.69,29.98]
[1759446737614,0.67,233.71,233.69,29.98]
[1759446738556,4.94881629,233.71,233.69,29.98]
[1759446739411,0.67,233.7,233.65,20.8]
[1759446739616,0.67,233.7,233.66,29.98]
[1759446739933,0.67,233.69,233.68,20.8]
[1759446740123,0.67,233.69,233.68,50.78]
[1759446741036,4.94917326,233.69,233.68,50.78]
[1759446743141,4.94917326,233.69,233.63,20.8]
[1759446743331,0.67,233.68,233.67,20.8]
[1759446743536,0.67,233.68,233.67,50.78]
[1759446745446,4.94935638,233.68,233.67,50.78]
[1759446746444,4.94935638,233.68,233.62,4.2804469]
[1759446746741,4.94935638,233.68,233.66,20.8]
[1759446746928,0.66,233.67,233.66,20.8]
[1759446747127,0.66,233.67,233.66,50.78]
[1759446747329,4.93953952,233.67,233.66,29.98]
[1759446748021,4.93935251,233.69,233.68,20.8]
[1759446748221,4.93935251,233.69,233.68,29.98]
[1759446749524,4.27935251,233.69,233.68,29.98]
[1759446750641,11.53647521,233.69,233.68,29.96]
[1759446750843,10.87647521,233.69,233.68,29.96]
[1759446752039,11.53647521,233.69,233.68,29.96]
[1759446752247,15.81564847,233.69,233.68,29.96]
[1759446753343,15.81564847,233.69,233.64,25.07997915]
[1759446753653,0.13062614,233.71,233.68,20.8]
[1759446753946,0.66,233.7,233.63,25.44008982]
[1759446754152,0.66,233.69,233.64,29.96]
[1759446754338,0.66,233.69,233.67,20.8]
[1759446754532,0.66,233.69,233.68,29.96]
[1759446755233,4.93917326,233.69,233.68,29.96]
[1759446758536,15.15528227,233.71,233.68,29.96]
[1759446758740,15.28590841,233.71,233.68,29.96]
[1759446758944,4.37864264,233.72,233.68,30.32]
[1759446759656,4.37864264,233.72,233.68,29.96]
[1759446759955,4.37864264,233.72,233.69,0.36]
[1759446760126,4.37864264,233.72,233.7,29.96]
[1759446761047,5.03864264,233.72,233.7,29.96]
[1759446761847,4.37864264,233.72,233.7,29.96]
[1759446763150,0.1,233.72,233.7,29.96]
[1759446764061,5.03863177,233.72,233.7,29.96]
[1759446768059,4.37863177,233.72,233.7,29.96]
[1759446768453,5.03863177,233.72,233.7,29.96]
[1759446768761,5.03863177,233.72,233.66,25.43970077]
[1759446768958,5.03863177,233.72,233.67,29.96]
[1759446769155,4.37863177,233.72,233.67,34.23952548]
[1759446769366,4.37863177,233.72,233.68,0.36]
[1759446770745,5.03863177,233.72,233.67,34.23952548]
[1759446770947,5.03863177,233.72,233.67,34.59952548]
[1759446771554,4.37863177,233.72,233.67,34.59952548]
[1759446771946,5.03863177,233.72,233.67,34.59952548]
[1759446772373,4.37863177,233.72,233.68,0.36]
[1759446773256,4.37863177,233.72,233.67,34.59952548]
[1759446773457,0.66,233.71,233.66,25.07971428]
[1759446773658,0.66,233.71,233.67,29.94]
[1759446775167,4.37863177,233.72,233.67,29.94]
[1759446775470,5.03863177,233.72,233.67,29.94]
[1759446776549,5.03863177,233.72,233.68,29.94]
[1759446778775,15.07519175,233.72,233.66,20.8]
[1759446778986,11.66710135,233.71,233.67,29.94]
[1759446779275,10.87647521,233.69,233.68,29.94]
[1759446779454,11.53647521,233.69,233.68,29.94]
[1759446780781,4.27883091,233.71,233.68,30.3]
[1759446780953,4.27883091,233.71,233.68,29.94]
[1759446781567,4.37862881,233.72,233.68,29.94]
[1759446781760,4.37862881,233.72,233.68,30.3]
[1759446781978,5.07862881,233.72,233.69,29.94]
[1759446783293,4.37862881,233.72,233.69,29.94]
[1759446783475,0.7,233.71,233.7,29.94]
[1759446785878,4.27880706,233.71,233.7,29.94]
[1759446788291,0.1,233.72,233.7,29.94]
[1759446789590,0.8,233.72,233.7,29.94]
[1759446789978,0.1,233.72,233.7,29.94]
[1759446790177,4.37864361,233.72,233.7,29.94]
[1759446790483,0.7,233.71,233.7,29.94]
[1759446791490,4.97880706,233.71,233.7,29.94]
[1759446791876,4.97880706,233.71,233.64,20.8]
[1759446792079,4.97880706,233.71,233.68,20.8]
[1759446792284,4.27880706,233.71,233.69,29.94]
[1759446793071,5.07865559,233.72,233.71,20.8]
[1759446793378,4.37865559,233.72,233.71,20.8]
[1759446793794,0.1,233.72,233.71,20.8]
[1759446795189,0.8,233.72,233.71,20.8]
[1759446795693,0.1,233.72,233.71,20.8]
[1759446796498,4.37862399,233.72,233.71,20.8]
[1759446796703,5.07862399,233.72,233.71,20.8]
[1759446798582,5.07862399,233.72,233.71,29.94]
[1759446799486,0.8,233.72,233.71,29.94]
[1759446799796,0.1,233.72,233.71,29.94]
[1759446800188,0.8,233.72,233.71,29.94]
[1759446800383,5.07862399,233.72,233.71,29.94]
[1759446801194,0.1,233.72,233.71,29.94]
[1759446814587,0.76,233.72,233.71,29.94]
[1759446814998,0.1,233.72,233.71,29.94]
[1759446817288,0.76,233.72,233.71,29.94]
[1759446817509,0.1,233.72,233.71,29.94]
[1759446818801,0.76,233.72,233.71,29.94]
[1759446820213,0.1,233.72,233.71,29.94]
[1759446820610,0.76,233.72,233.71,29.94]
[1759446824991,0.76,233.72,233.68,20.8]
[1759446825220,0.1,233.72,233.71,20.8]